bitfinex-derivatives/quotes_BTCF0:USTF0_20251215
["timestamp","ask_amount","ask_price","bid_price","bid_amount"]
[1765793465018,0.21,89862.0,89861.0,0.0111285]
[1765793465616,0.21,89862.0,89861.0,0.3719285]
[1765793465818,0.214,89862.0,89861.0,0.3719285]
[1765793466820,0.204,89862.0,89861.0,0.3719285]
[1765793467022,0.06346387,89862.0,89861.0,0.3719285]
[1765793467828,0.063,89862.0,89861.0,0.3719285]
[1765793468221,0.061,89862.0,89861.0,0.3719285]
[1765793470528,0.02143193,89862.0,89861.0,0.3719285]
[1765793486543,0.02143193,89862.0,89861.0,0.7327285]
[1765793490453,0.02143193,89862.0,89861.0,0.0111285]
[1765793490653,0.02143193,89862.0,89861.0,0.7327285]
[1765793495054,0.04532879,89862.0,89861.0,0.7327285]
[1765793501358,0.02143193,89862.0,89861.0,0.7327285]
[1765793501559,0.04534594,89862.0,89861.0,0.7327285]
[1765793507368,0.04534594,89862.0,89861.0,0.79281415]
[1765793507569,0.04534594,89862.0,89861.0,0.7327285]
[1765793509373,0.04534594,89862.0,89861.0,0.3719285]
[1765793511973,0.04534594,89862.0,89861.0,0.0111285]
[1765793512163,0.04534594,89862.0,89861.0,0.3719285]
[1765793517366,0.04534594,89862.0,89861.0,0.43202277]
[1765793518068,0.23491401,89862.0,89861.0,0.43202277]
[1765793518371,0.23491401,89862.0,89861.0,0.0111285]
[1765793518670,0.23491401,89862.0,89860.0,0.1185]
[1765793518870,0.02391401,89861.0,89860.0,0.1185]
[1765793519073,0.22391401,89861.0,89860.0,0.1185]
[1765793519271,0.22391401,89861.0,89860.0,0.09308691]
[1765793519966,0.22491401,89861.0,89860.0,0.09308691]
[1765793521482,0.22591401,89861.0,89860.0,0.09308691]
[1765793522979,0.22591401,89861.0,89858.0,0.0111288]
[1765793523172,0.02391401,89860.0,89858.0,0.0111288]
[1765793523373,0.02391401,89859.0,89858.0,0.0111288]
[1765793523679,0.22391401,89859.0,89858.0,0.0111288]
[1765793524081,0.23504281,89859.0,89857.0,0.0111288]
[1765793524380,0.02391401,89858.0,89857.0,0.0111288]
[1765793524573,0.22391401,89858.0,89857.0,0.0111288]
[1765793525173,0.22391401,89858.0,89853.0,0.0001669]
[1765793525482,0.0111291,89856.0,89854.0,0.0111293]
[1765793525683,0.02391401,89855.0,89854.0,0.0111293]
[1765793525883,0.23391401,89855.0,89854.0,0.0111293]
[1765793526876,0.23491401,89855.0,89854.0,0.0111293]
[1765793533887,0.24604321,89855.0,89853.0,0.0001669]
[1765793534086,0.02391401,89854.0,89853.0,0.0001669]
[1765793534288,0.23391401,89854.0,89853.0,0.0001669]
[1765793535188,0.02391401,89854.0,89853.0,0.0001669]
[1765793535395,0.0001669,89870.0,89869.0,0.0111275]
[1765793535596,0.0001669,89870.0,89869.0,0.3719275]
[1765793535597,0.1701669,89870.0,89869.0,0.3719275]
[1765793535893,0.19397612,89870.0,89869.0,0.3719275]
[1765793536477,0.19497612,89870.0,89869.0,0.3719275]
[1765793536790,0.1711669,89870.0,89869.0,0.3719275]
[1765793537690,0.1731669,89870.0,89869.0,0.3719275]
[1765793541686,0.1731669,89870.0,89869.0,0.183055]
[1765793546899,0.19697296,89870.0,89869.0,0.183055]
[1765793549594,0.19697296,89870.0,89869.0,0.3719275]
[1765793553201,0.3608,89882.0,89881.0,0.011126]
[1765793553383,0.42445744,89882.0,89881.0,0.011126]
[1765793553697,0.56445744,89882.0,89881.0,0.011126]
[1765793554295,0.20365744,89882.0,89881.0,0.011126]
[1765793555197,0.23665744,89882.0,89881.0,0.013126]
[1765793555400,0.23665744,89882.0,89881.0,0.02455009]
[1765793556904,0.213,89882.0,89881.0,0.02455009]
[1765793565210,0.23659596,89882.0,89881.0,0.02455009]
[1765793565803,0.23659596,89882.0,89873.0,0.0001669]
[1765793565804,0.0111269,89874.0,89873.0,0.0001669]
[1765793566113,0.21,89874.0,89860.0,0.13077097]
[1765793566412,0.21,89874.0,89852.0,0.06009427]
[1765793566413,0.3608,89864.0,89861.0,0.0111284]
[1765793566713,0.02359596,89863.0,89861.0,0.0111284]
[1765793566897,0.02359596,89862.0,89861.0,0.0111284]
[1765793567104,0.23359596,89862.0,89861.0,0.0111284]
[1765793567914,0.23359596,89862.0,89861.0,0.0131284]
[1765793569607,0.23359596,89862.0,89861.0,0.0111284]
[1765793569813,0.23459596,89862.0,89861.0,0.0131284]
[1765793570709,0.23359596,89862.0,89861.0,0.0111284]
[1765793570917,0.23459596,89862.0,89861.0,0.0131284]
[1765793571216,0.23559596,89862.0,89861.0,0.0131284]
[1765793571707,0.23459596,89862.0,89861.0,0.0131284]
[1765793572015,0.23559596,89862.0,89861.0,0.0131284]
[1765793572410,0.23459596,89862.0,89861.0,0.0111284]
[1765793572611,0.23559596,89862.0,89861.0,0.0131284]
[1765793573413,0.23459596,89862.0,89861.0,0.0131284]
[1765793573710,0.23559596,89862.0,89861.0,0.0131284]
[1765793574608,0.23459596,89862.0,89861.0,0.0131284]
[1765793574903,0.23559596,89862.0,89861.0,0.0131284]
[1765793586408,0.23559596,89862.0,89861.0,0.002]
[1765793588519,0.23537258,89862.0,89861.0,0.002]
[1765793588905,0.23537258,89862.0,89861.0,0.0131285]
[1765793590514,0.23537258,89862.0,89861.0,0.002]
[1765793590910,0.23537258,89862.0,89853.0,0.0001669]
[1765793590911,0.0111293,89854.0,89853.0,0.0001669]
[1765793591111,0.5719293,89854.0,89853.0,0.0001669]
[1765793591615,0.2111293,89854.0,89853.0,0.0001669]
[1765793592319,0.2111293,89854.0,89853.0,0.0011669]
[1765793592719,0.2121293,89854.0,89853.0,0.0041669]
[1765793593217,0.2121293,89854.0,89853.0,0.0132964]
[1765793594722,0.2121293,89854.0,89853.0,0.0021669]
[1765793595523,0.5729293,89854.0,89853.0,0.0021669]
[1765793597624,0.5729293,89854.0,89853.0,0.0132964]
[1765793598416,0.201,89854.0,89853.0,0.0132964]
[1765793600334,0.22458478,89854.0,89853.0,0.0132964]
[1765793601121,0.22458478,89854.0,89853.0,0.3740964]
[1765793601525,0.02458478,89854.0,89853.0,0.3740964]
[1765793601825,0.03458478,89854.0,89853.0,0.3740964]
[1765793606519,0.02458478,89854.0,89853.0,0.3740964]
[1765793609026,0.22458478,89854.0,89853.0,0.0021669]
[1765793612424,0.0111305,89845.0,89837.0,0.00014019]
[1765793612619,0.3608,89838.0,89837.0,0.00014019]
[1765793612826,0.5843535,89838.0,89837.0,0.01127159]
[1765793613631,0.5843535,89838.0,89837.0,0.01427159]
[1765793613825,0.2335535,89838.0,89837.0,0.01427159]
[1765793614425,0.2345535,89838.0,89837.0,0.01427159]
[1765793614925,0.2355535,89838.0,89837.0,0.01427159]
[1765793616230,0.0955535,89838.0,89837.0,0.01427159]
[1765793617326,0.072,89838.0,89837.0,0.01427159]
[1765793617735,0.182,89838.0,89837.0,0.01427159]
[1765793618126,0.002,89838.0,89837.0,0.01427159]
[1765793618334,0.032,89838.0,89837.0,0.01427159]
[1765793618631,0.002,89838.0,89837.0,0.01427159]
[1765793618835,0.182,89838.0,89837.0,0.01427159]
[1765793621234,0.002,89838.0,89837.0,0.01427159]
[1765793621733,0.0001669,89846.0,89845.0,0.0111305]
[1765793621931,0.0001669,89846.0,89845.0,0.3719305]
[1765793622941,0.0001669,89846.0,89845.0,0.3739305]
[1765793623740,0.0011669,89846.0,89845.0,0.3739305]
[1765793634854,0.1211669,89846.0,89845.0,0.3739305]
[1765793638741,0.0011669,89846.0,89845.0,0.3739305]
[1765793639143,0.1711669,89846.0,89845.0,0.3739305]
[1765793639446,0.0011669,89846.0,89845.0,0.3739305]
[1765793642245,0.3608,89869.0,89868.0,0.0111276]
[1765793642455,0.57440518,89869.0,89866.0,0.0111278]
[1765793642654,0.02360518,89868.0,89866.0,0.0111278]
[1765793642854,0.02360518,89867.0,89866.0,0.0111278]
[1765793643055,0.23360518,89867.0,89866.0,0.0111278]
[1765793644155,0.23560518,89867.0,89866.0,0.0111278]
[1765793644355,0.23560518,89867.0,89858.0,0.0112957]
[1765793644356,0.23560518,89867.0,89858.0,0.0001669]
[1765793644562,0.212,89867.0,89866.0,0.0111279]
[1765793644750,0.23561213,89867.0,89866.0,0.0111279]
[1765793644949,0.23661213,89867.0,89866.0,0.0111279]
[1765793645744,0.23461213,89867.0,89866.0,0.0111279]
[1765793645950,0.23561213,89867.0,89866.0,0.0111279]
[1765793693509,0.23561213,89867.0,89861.0,0.3608]
[1765793693710,0.38441213,89866.0,89863.0,0.0111281]
[1765793693902,0.02361213,89865.0,89863.0,0.0111281]
[1765793694213,0.21361213,89865.0,89863.0,0.0111281]
[1765793694412,0.02361213,89864.0,89863.0,0.0111281]
[1765793694711,0.20361213,89864.0,89863.0,0.0111281]
[1765793696702,0.20461213,89864.0,89863.0,0.0111281]
[1765793696903,0.20561213,89864.0,89863.0,0.0111281]
[1765793719937,0.20561213,89864.0,89863.0,0.0111281]
[1765793720626,0.0001669,89875.0,89874.0,0.0111269]
[1765793720827,0.1801669,89875.0,89874.0,0.0111269]
[1765793722636,0.1841669,89875.0,89874.0,0.0111269]
[1765793732754,0.20748168,89875.0,89874.0,0.0111269]
[1765793738854,0.20748168,89875.0,89866.0,0.06009427]
[1765793739049,0.20748168,89875.0,89865.0,0.13076108]
[1765793739050,0.3608,89873.0,89865.0,0.13076108]
[1765793739249,0.02331478,89872.0,89865.0,0.13076108]
[1765793739450,0.20331478,89872.0,89865.0,0.13076108]
[1765793739652,0.02331478,89871.0,89869.0,0.0111274]
[1765793739861,0.21331478,89871.0,89869.0,0.0111274]
[1765793740051,0.02331478,89870.0,89869.0,0.0111274]
[1765793740360,0.21331478,89870.0,89869.0,0.0111274]
[1765793742363,0.21531478,89870.0,89869.0,0.0111274]
[1765793742663,0.21631478,89870.0,89869.0,0.0111274]
[1765793750551,0.21631478,89870.0,89861.0,0.3608]
[1765793750752,0.3608,89862.0,89860.0,0.13076108]
[1765793750958,0.02331478,89861.0,89859.0,0.0111287]
[1765793751158,0.23331478,89861.0,89859.0,0.0111287]
[1765793751367,0.02331478,89860.0,89859.0,0.0111287]
[1765793751562,0.23331478,89860.0,89859.0,0.0111287]
[1765793752169,0.23331478,89860.0,89859.0,0.0121287]
[1765793752771,0.23431478,89860.0,89859.0,0.0121287]
[1765793753564,0.23431478,89860.0,89859.0,0.0131287]
[1765793754165,0.23431478,89860.0,89859.0,0.002]
[1765793755772,0.23331478,89860.0,89859.0,0.001]
[1765793755968,0.23431478,89860.0,89859.0,0.002]
[1765793756864,0.23431478,89860.0,89859.0,0.001]
[1765793757065,0.23531478,89860.0,89859.0,0.001]
[1765793759173,0.24644338,89860.0,89859.0,0.001]
[1765793760475,0.23531478,89860.0,89859.0,0.001]
[1765793763177,0.23531478,89860.0,89853.0,0.0111294]
[1765793763378,0.3608,89854.0,89853.0,0.0111294]
[1765793763567,0.56411478,89854.0,89853.0,0.0111294]
[1765793763772,0.56411478,89854.0,89836.0,0.01116186]
[1765793763773,0.0111305,89845.0,89844.0,0.0111305]
[1765793763973,0.22444528,89845.0,89844.0,0.0111305]
[1765793764373,0.011131,89842.0,89841.0,0.0111309]
[1765793764582,0.22444578,89842.0,89841.0,0.0111309]
[1765793765177,0.201131,89842.0,89841.0,0.0111309]
[1765793765975,0.22444921,89842.0,89841.0,0.0111309]
[1765793766178,0.202131,89842.0,89841.0,0.0111309]
[1765793766375,0.202131,89842.0,89841.0,0.0141309]
[1765793767180,0.202131,89842.0,89841.0,0.003]
[1765793767379,0.22544143,89842.0,89841.0,0.003]
[1765793768284,0.22544143,89842.0,89841.0,0.0141309]
[1765793768475,0.21431043,89842.0,89841.0,0.0141309]
[1765793768682,0.21430588,89842.0,89841.0,0.0141309]
[1765793768885,0.191,89842.0,89841.0,0.0141309]
[1765793769787,0.191,89842.0,89841.0,0.003]
[1765793772987,0.191,89842.0,89841.0,0.3638]
[1765793778588,0.191,89842.0,89841.0,0.003]
[1765793780503,0.21430421,89842.0,89837.0,0.00014019]
[1765793780702,0.02330421,89841.0,89837.0,0.01127159]
[1765793780902,0.23330421,89841.0,89837.0,0.01127159]
[1765793781099,0.0111311,89840.0,89837.0,0.00014019]
[1765793781299,0.02330509,89839.0,89837.0,0.00014019]
[1765793781499,0.02330509,89838.0,89837.0,0.01127159]
[1765793781693,0.23330509,89838.0,89837.0,0.01527159]
[1765793783704,0.23430509,89838.0,89837.0,0.01427159]
[1765793783895,0.23530509,89838.0,89837.0,0.01427159]
[1765793799204,0.23530509,89838.0,89837.0,0.00314019]
[1765793806819,0.212,89838.0,89837.0,0.00314019]
[1765793807019,0.23540586,89838.0,89837.0,0.00314019]
[1765793807225,0.212,89838.0,89837.0,0.00314019]
[1765793808918,0.23541209,89838.0,89837.0,0.00314019]
[1765793813632,0.24654339,89838.0,89837.0,0.00314019]
[1765793814128,0.23541209,89838.0,89837.0,0.00314019]
[1765793814827,0.24654339,89838.0,89837.0,0.00314019]
[1765793820527,0.23541209,89838.0,89837.0,0.00314019]
[1765793838849,0.06541209,89838.0,89837.0,0.00314019]
[1765793839449,0.042,89838.0,89837.0,0.00314019]
[1765793845458,0.042,89838.0,89837.0,0.06316419]
[1765793846842,0.042,89838.0,89837.0,0.00314019]
[1765793847444,0.202,89838.0,89837.0,0.00314019]
[1765793847843,0.22538556,89838.0,89837.0,0.00314019]
[1765793850348,0.22538556,89838.0,89831.0,0.01121761]
[1765793850664,0.02338556,89837.0,89836.0,0.0111315]
[1765793850857,0.21338556,89837.0,89836.0,0.0111315]
[1765793851561,0.21352575,89837.0,89836.0,0.0111315]
[1765793852251,0.21452575,89837.0,89836.0,0.0111315]
[1765793853259,0.21552575,89837.0,89836.0,0.0141315]
[1765793857557,0.22665715,89837.0,89836.0,0.003]
[1765793860652,0.21552575,89837.0,89836.0,0.003]
[1765793867870,0.21542928,89837.0,89836.0,0.003]
[1765793868372,0.21542928,89837.0,89836.0,0.0141316]
[1765793870766,0.2148269,89837.0,89836.0,0.0141316]
[1765793871072,0.2148269,89837.0,89836.0,0.003]
[1765793872772,0.2148269,89837.0,89821.0,0.0111334]
[1765793872773,0.0111334,89822.0,89814.0,0.060024]
[1765793872972,0.0111334,89822.0,89812.0,0.3608]
[1765793872973,0.19,89822.0,89821.0,0.0111333]
[1765793873873,0.191,89822.0,89821.0,0.02222025]
[1765793874373,0.192,89822.0,89821.0,0.02222025]
[1765793874667,0.191,89822.0,89821.0,0.0111333]
[1765793874971,0.192,89822.0,89821.0,0.0161333]
[1765793880467,0.002,89822.0,89821.0,0.0161333]
[1765793880678,0.152,89822.0,89821.0,0.0161333]
[1765793881072,0.002,89822.0,89821.0,0.3769333]
[1765793881274,0.012,89822.0,89821.0,0.3769333]
[1765793881479,0.002,89822.0,89821.0,0.3769333]
[1765793886573,0.33809127,89842.0,89831.0,0.0111321]
[1765793886773,0.02345657,89841.0,89831.0,0.0111321]
[1765793886983,0.02345657,89840.0,89831.0,0.0111321]
[1765793887175,0.02345657,89839.0,89831.0,0.0111321]
[1765793887375,0.03458797,89838.0,89833.0,0.0111319]
[1765793887582,0.02345657,89837.0,89833.0,0.0111319]
[1765793887784,0.23345657,89837.0,89833.0,0.0111319]
[1765793888083,0.02345657,89836.0,89833.0,0.0111319]
[1765793888286,0.24458817,89836.0,89833.0,0.0111319]
[1765793888488,0.02345657,89835.0,89833.0,0.0111319]
[1765793888683,0.19345657,89835.0,89833.0,0.0111319]
[1765793888885,0.02345657,89834.0,89833.0,0.0111319]
[1765793889070,0.19345657,89834.0,89833.0,0.0111319]
[1765793889772,0.19345657,89834.0,89833.0,0.0141319]
[1765793890178,0.19445657,89834.0,89833.0,0.0151319]
[1765793890486,0.19445657,89834.0,89833.0,0.0121319]
[1765793890675,0.19545657,89834.0,89833.0,0.0151319]
[1765793892687,0.02545657,89834.0,89833.0,0.0151319]
[1765793893001,0.22545657,89834.0,89833.0,0.0151319]
[1765793918088,0.23658837,89834.0,89833.0,0.004]
[1765793918596,0.0111324,89829.0,89827.0,0.000167]
[1765793918788,0.0111337,89819.0,89817.0,0.0111339]
[1765793918987,0.60539027,89819.0,89817.0,0.0111339]
[1765793919188,0.59425657,89819.0,89817.0,0.0111339]
[1765793919794,0.59525657,89819.0,89818.0,0.00322674]
[1765793920902,0.59625657,89819.0,89818.0,0.00622674]
[1765793926503,0.23545657,89819.0,89818.0,0.00622674]
[1765793927191,0.212,89819.0,89818.0,0.36702674]
[1765793929105,0.212,89819.0,89818.0,0.00622674]
[1765793930003,0.012,89819.0,89818.0,0.00622674]
[1765793930198,0.172,89819.0,89818.0,0.00622674]
[1765793932112,0.19539732,89819.0,89818.0,0.00622674]
[1765793940502,0.19539732,89819.0,89818.0,0.00522674]
[1765793940699,0.0111338,89818.0,89809.0,0.01141128]
[1765793940905,0.3719348,89810.0,89809.0,0.13086475]
[1765793941111,0.60533212,89810.0,89807.0,0.0111351]
[1765793941307,0.02339732,89809.0,89807.0,0.0111351]
[1765793941814,0.002,89819.0,89818.0,0.0111338]
[1765793942013,0.202,89819.0,89818.0,0.0111338]
[1765793942202,0.22908427,89819.0,89818.0,0.0111338]
[1765793942403,0.22708427,89819.0,89818.0,0.0111338]
[1765793942805,0.22708427,89819.0,89815.0,0.0111341]
[1765793943011,0.03821807,89818.0,89815.0,0.0111341]
[1765793943316,0.0111346,89812.0,89809.0,0.001]
[1765793943510,0.3719348,89810.0,89809.0,0.001]
[1765793943711,0.55788427,89810.0,89809.0,0.001]
[1765793944216,0.19708427,89810.0,89800.0,0.13086475]
[1765793944418,0.3608,89805.0,89803.0,0.0111356]
[1765793944712,0.02708427,89804.0,89803.0,0.0111356]
[1765793944901,0.22708427,89804.0,89803.0,0.0111356]
[1765793946001,0.22908427,89804.0,89803.0,0.0121356]
[1765793946814,0.23008427,89804.0,89803.0,0.001]
[1765793949614,0.24121977,89804.0,89803.0,0.001]
[1765793952614,0.23008427,89804.0,89803.0,0.001]
[1765793957018,0.24121977,89804.0,89803.0,0.001]
[1765793958818,0.24121977,89804.0,89794.0,0.13096838]
[1765793958819,0.0111365,89796.0,89794.0,0.00010363]
[1765793959009,0.38788427,89795.0,89794.0,0.00010363]
[1765793959208,0.56788427,89795.0,89794.0,0.00010363]
[1765793960016,0.56788427,89795.0,89794.0,0.00110363]
[1765793960815,0.56888427,89795.0,89794.0,0.00110363]
[1765793961118,0.56988427,89795.0,89794.0,0.00110363]
[1765793962215,0.000167,89804.0,89803.0,0.0111357]
[1765793962411,0.000167,89804.0,89803.0,0.3719357]
[1765793963414,0.002167,89804.0,89803.0,0.3729357]
[1765793963816,0.003167,89804.0,89803.0,0.3729357]
[1765793965117,0.03023514,89804.0,89803.0,0.0121357]
[1765793969811,0.03023514,89804.0,89803.0,0.3729357]
[1765793971121,0.01170124,89804.0,89803.0,0.3729357]
[1765793971319,0.3608,89824.0,89821.0,0.0111334]
[1765793971520,0.5508,89824.0,89821.0,0.0111334]
[1765793972226,0.5508,89824.0,89818.0,0.0111337]
[1765793972419,0.5508,89824.0,89822.0,0.0111332]
[1765793972619,0.5558,89824.0,89822.0,0.0111332]
[1765793973325,0.5548,89824.0,89822.0,0.0111332]
[1765793973527,0.5558,89824.0,89822.0,0.0111332]
[1765793974026,0.5548,89824.0,89822.0,0.0111332]
[1765793974222,0.5558,89824.0,89822.0,0.0121332]
[1765793974822,0.5548,89824.0,89822.0,0.0131332]
[1765793976221,0.194,89824.0,89822.0,0.0131332]
[1765793983017,0.02955871,89823.0,89822.0,0.0131332]
[1765793983218,0.11955871,89823.0,89822.0,0.0131332]
[1765793984222,0.12355871,89823.0,89822.0,0.0141332]
[1765793986636,0.11355871,89823.0,89822.0,0.0141332]
[1765793987728,0.21355871,89823.0,89822.0,0.0141332]
[1765793998447,0.27358356,89823.0,89822.0,0.0141332]
[1765793998836,0.21355871,89823.0,89822.0,0.0141332]
[1765793999441,0.21355871,89823.0,89820.0,0.35613107]
[1765793999736,0.0111338,89819.0,89814.0,0.0113012]
[1765793999938,0.02955871,89818.0,89814.0,0.000167]
[1765794000135,0.02955871,89818.0,89815.0,0.0111342]
[1765794000136,0.02955871,89817.0,89815.0,0.0111342]
[1765794000343,0.02955871,89816.0,89815.0,0.0111342]
[1765794000548,0.06955871,89816.0,89815.0,0.0111342]
[1765794000750,0.08952839,89816.0,89815.0,0.0111342]
[1765794001051,0.004,89823.0,89815.0,0.0111342]
[1765794001257,0.0111367,89795.0,89794.0,0.00010363]
[1765794001543,0.0111367,89795.0,89763.0,0.05]
[1765794001544,0.3608,89794.0,89763.0,0.05]
[1765794001732,0.3608,89794.0,89784.0,0.011138]
[1765794001733,0.21,89794.0,89784.0,0.011138]
[1765794002041,0.0111336,89820.0,89784.0,0.011138]
[1765794002042,0.0111362,89799.0,89793.0,0.36196712]
[1765794002243,0.19,89799.0,89785.0,0.36196712]
[1765794002543,0.19,89799.0,89784.0,0.0111379]
[1765794002544,0.3608,89786.0,89784.0,0.0111379]
[1765794002946,0.3608,89786.0,89785.0,0.36196712]
[1765794004043,0.3638,89786.0,89785.0,0.36196712]
[1765794004641,0.3608,89786.0,89785.0,0.36296712]
[1765794004948,0.3638,89786.0,89785.0,0.36296712]
[1765794005349,0.3648,89786.0,89785.0,0.36296712]
[1765794008141,0.3638,89786.0,89785.0,0.36296712]
[1765794008341,0.3648,89786.0,89785.0,0.36296712]
[1765794008849,0.3638,89786.0,89785.0,0.36296712]
[1765794009048,0.3648,89786.0,89785.0,0.36296712]
[1765794009245,0.5448,89786.0,89785.0,0.36296712]
[1765794009445,0.3618,89786.0,89785.0,0.36196712]
[1765794009647,0.5648,89786.0,89785.0,0.36296712]
[1765794010249,0.5618,89786.0,89785.0,0.36196712]
[1765794010448,0.5648,89786.0,89785.0,0.36296712]
[1765794011341,0.5638,89786.0,89785.0,0.36296712]
[1765794011542,0.0111394,89773.0,89767.0,0.0111401]
[1765794011750,0.7216,89768.0,89767.0,0.0111401]
[1765794011952,0.9216,89768.0,89767.0,0.0111401]
[1765794012554,0.92168862,89768.0,89767.0,0.0111401]
[1765794013552,0.92268862,89768.0,89767.0,0.0121401]
[1765794014445,0.92368862,89768.0,89767.0,0.0121401]
[1765794015444,1.36336677,89768.0,89767.0,0.001]
[1765794015649,0.96336677,89768.0,89767.0,0.001]
[1765794016851,0.96336677,89768.0,89767.0,0.0121401]
[1765794017562,0.95222677,89768.0,89767.0,0.0121401]
[1765794021253,0.72368862,89768.0,89767.0,0.0121401]
[1765794021453,0.000167,89779.0,89778.0,0.0111388]
[1765794021765,0.3608,89792.0,89791.0,0.0111371]
[1765794021957,0.48933602,89792.0,89791.0,0.0111371]
[1765794023550,0.49133602,89792.0,89791.0,0.0111371]
[1765794024354,0.49533602,89792.0,89791.0,0.0121371]
[1765794024549,0.49333602,89792.0,89791.0,0.0121371]
[1765794024760,0.49433602,89792.0,89791.0,0.0121371]
[1765794025162,0.49333602,89792.0,89791.0,0.0121371]
[1765794029254,0.13253602,89792.0,89791.0,0.0121371]
[1765794030952,0.13253602,89792.0,89791.0,0.001]
[1765794031264,0.011138,89784.0,89783.0,0.0001671]
[1765794031464,0.60047402,89784.0,89783.0,0.0001671]
[1765794032359,0.60247402,89784.0,89783.0,0.0011671]
[1765794033860,0.60347402,89784.0,89783.0,0.0011671]
[1765794037862,0.59233602,89784.0,89783.0,0.0011671]
[1765794045470,0.59227602,89784.0,89783.0,0.0011671]
[1765794046171,0.60341402,89784.0,89783.0,0.0011671]
[1765794048570,0.0111396,89774.0,89773.0,0.0111387]
[1765794048773,0.58933602,89774.0,89773.0,0.0111387]
[1765794049762,0.58933602,89774.0,89773.0,0.0121387]
[1765794049978,0.59033602,89774.0,89773.0,0.0121387]
[1765794050965,0.59133602,89774.0,89773.0,0.0121387]
[1765794060384,0.39133602,89774.0,89773.0,0.0121387]
[1765794062972,0.00533643,89774.0,89773.0,0.4121387]
[1765794063379,0.36074,89784.0,89783.0,0.0111381]
[1765794063579,0.38074,89784.0,89783.0,0.0111381]
[1765794064472,0.38274,89784.0,89783.0,0.0121381]
[1765794064672,0.38374,89784.0,89783.0,0.0121381]
[1765794069476,0.54374,89784.0,89783.0,0.0121381]
[1765794071184,0.38374,89784.0,89783.0,0.0121381]
[1765794071590,0.023,89784.0,89783.0,0.0121381]
[1765794075291,0.05086342,89784.0,89783.0,0.0121381]
[1765794079599,0.23086342,89784.0,89783.0,0.0121381]
[1765794079798,0.41166342,89784.0,89783.0,0.0121381]
[1765794080796,0.41166342,89784.0,89783.0,0.001]
[1765794080797,0.57166342,89784.0,89783.0,0.001]
[1765794081489,0.58280142,89784.0,89783.0,0.001]
[1765794083599,0.58280142,89784.0,89783.0,0.0121381]
[1765794087694,0.57166342,89784.0,89783.0,0.0121381]
[1765794092901,0.57166342,89784.0,89783.0,0.001]
[1765794094406,0.0111382,89783.0,89770.0,0.0111397]
[1765794094605,0.3719396,89771.0,89770.0,0.0111397]
[1765794094807,0.60980302,89771.0,89770.0,0.0111397]
[1765794095504,0.59866342,89771.0,89770.0,0.0121397]
[1765794096306,0.59966342,89771.0,89770.0,0.0131397]
[1765794097112,0.60066342,89771.0,89770.0,0.0131397]
[1765794105318,0.60066342,89771.0,89770.0,0.002]
[1765794105520,0.60066342,89771.0,89770.0,0.0131398]
[1765794106426,0.60066342,89771.0,89770.0,0.002]
[1765794109821,0.60066342,89771.0,89761.0,0.1185]
[1765794110025,0.0111402,89767.0,89765.0,0.0111403]
[1765794110328,0.02786342,89766.0,89765.0,0.0111403]
[1765794110526,0.23786342,89766.0,89765.0,0.0111403]
[1765794112727,0.25000362,89766.0,89765.0,0.0111403]
[1765794112928,0.25100362,89766.0,89765.0,0.0131403]
[1765794113125,0.25100362,89766.0,89765.0,0.002]
[1765794113426,0.25100362,89766.0,89763.0,0.05]
[1765794113427,0.0111405,89764.0,89763.0,0.05]
[1765794113630,0.21,89764.0,89763.0,0.05]
[1765794113819,0.23786342,89764.0,89763.0,0.05]
[1765794114522,0.23886342,89764.0,89763.0,0.052]
[1765794115530,0.23986342,89764.0,89763.0,0.052]
[1765794120930,0.21986342,89764.0,89763.0,0.052]
[1765794125741,0.02986342,89764.0,89763.0,0.052]
[1765794127135,0.002,89764.0,89763.0,0.052]
[1765794130136,0.50008405,89764.0,89763.0,0.052]
[1765794130542,0.13928405,89764.0,89763.0,0.052]
[1765794136143,0.002,89764.0,89763.0,0.052]
[1765794140645,0.002,89764.0,89763.0,0.1705]
[1765794142150,0.3608,89777.0,89764.0,0.0111404]
[1765794142351,0.3608,89777.0,89775.0,0.0111391]
[1765794142352,0.02727862,89776.0,89775.0,0.0111391]
[1765794142551,0.22727862,89776.0,89775.0,0.0111391]
[1765794143643,0.22827862,89776.0,89775.0,0.0111391]
[1765794144152,0.23027862,89776.0,89775.0,0.0121391]
[1765794158060,0.3608,89791.0,89775.0,0.0121391]
[1765794158061,0.3608,89791.0,89790.0,0.0111373]
[1765794158263,0.05986346,89814.0,89811.0,0.0111346]
[1765794158453,0.14,89814.0,89811.0,0.0111346]
[1765794159366,0.14,89814.0,89804.0,0.13121586]
[1765794159367,0.14,89814.0,89807.0,0.0111351]
[1765794159555,0.3608,89813.0,89810.0,0.0111347]
[1765794159857,0.5608,89813.0,89810.0,0.0111347]
[1765794160861,0.5608,89813.0,89811.0,0.002]
[1765794161064,0.5608,89813.0,89812.0,0.0111345]
[1765794161267,0.56028265,89813.0,89812.0,0.0111345]
[1765794161966,0.57928265,89813.0,89812.0,0.0111345]
[1765794162557,0.57928265,89813.0,89812.0,0.0131345]
[1765794162763,0.59528265,89813.0,89812.0,0.0131345]
[1765794170065,0.62165528,89813.0,89812.0,0.0131345]
[1765794174874,0.235,89813.0,89812.0,0.0131345]
[1765794176573,0.22,89813.0,89812.0,0.0141345]
[1765794176779,0.207,89813.0,89812.0,0.0131345]
[1765794181885,0.007,89813.0,89812.0,0.0131345]
[1765794182076,0.00222674,89818.0,89817.0,0.0111339]
[1765794182278,0.13222674,89818.0,89817.0,0.0111339]
[1765794183185,0.13922674,89818.0,89817.0,0.0121339]
[1765794183387,0.14222674,89818.0,89817.0,0.0131339]
[1765794185386,0.14222674,89818.0,89817.0,0.1316339]
[1765794186187,0.16806413,89818.0,89817.0,0.1316339]
[1765794187295,0.14222674,89818.0,89817.0,0.1316339]
[1765794188379,0.16808544,89818.0,89817.0,0.1316339]
[1765794188575,0.16808544,89818.0,89817.0,0.07806312]
[1765794188786,0.56808544,89818.0,89808.0,0.0110321]
[1765794188997,0.3608,89809.0,89806.0,0.0111352]
[1765794189190,0.0258587,89808.0,89806.0,0.0111352]
[1765794189405,0.0258587,89807.0,89806.0,0.0111352]
[1765794189585,0.2358587,89807.0,89806.0,0.0111352]
[1765794191592,0.2368587,89807.0,89806.0,0.0111352]
[1765794191783,0.2398587,89807.0,89806.0,0.0121352]
[1765794191984,0.0298587,89807.0,89806.0,0.0121352]
[1765794192583,0.0298562,89807.0,89806.0,0.0121352]
[1765794193594,0.2298562,89807.0,89806.0,0.0121352]
[1765794201999,0.5906562,89807.0,89806.0,0.0121352]
[1765794203097,0.5906562,89807.0,89797.0,0.11556534]
[1765794203304,0.0258562,89806.0,89805.0,0.0111354]
[1765794203595,0.2158562,89806.0,89805.0,0.0111354]